bitfinex-derivatives/quotes_ETHF0:USTF0_20250929
["timestamp","ask_amount","ask_price","bid_price","bid_amount"]
[1759106015331,7.30176443,4133.7,4133.6,0.00295685]
[1759106015532,6.29062657,4133.7,4133.6,0.00295685]
[1759106015740,47.09062657,4133.7,4133.6,0.00295685]
[1759106017938,48.10176443,4133.7,4133.6,0.00295685]
[1759106018134,42.09062657,4133.7,4133.6,0.00295685]
[1759106018338,42.33662657,4133.7,4133.6,0.00295685]
[1759106018936,42.09062657,4133.7,4133.6,0.00295685]
[1759106019136,42.33662657,4133.7,4133.6,0.00295685]
[1759106019442,42.33662657,4133.7,4133.6,0.56355685]
[1759106020731,42.33662657,4133.7,4133.6,0.00295685]
[1759106021338,1.53662657,4133.7,4133.6,0.00295685]
[1759106028136,42.33662657,4133.7,4133.6,0.00295685]
[1759106030238,42.33662657,4133.7,4133.6,0.33865685]
[1759106030731,0.43532,4133.0,4132.9,0.02419638]
[1759106030937,1.97194657,4133.0,4132.9,0.58479638]
[1759106031131,1.72594657,4133.0,4132.9,0.58479638]
[1759106031336,1.97194657,4133.0,4132.9,0.81579638]
[1759106031736,1.97379789,4133.0,4132.9,0.81579638]
[1759106031936,1.97379789,4133.0,4132.9,0.81840138]
[1759106032733,2.08709789,4133.0,4132.9,0.02680138]
[1759106035241,1.38979789,4133.0,4132.9,0.81750138]
[1759106035445,1.97459789,4133.0,4132.9,0.81750138]
[1759106035840,1.72859789,4133.0,4132.9,0.81750138]
[1759106036145,1.97459789,4133.0,4132.9,0.81750138]
[1759106037442,1.63579789,4133.0,4132.9,0.81750138]
[1759106039249,1.97459789,4133.0,4132.9,0.81750138]
[1759106040151,0.96099789,4133.0,4132.9,0.81750138]
[1759106040453,1.20699789,4133.0,4132.9,0.81750138]
[1759106041645,1.98719789,4133.0,4132.9,0.81750138]
[1759106041951,1.98719789,4133.0,4132.9,0.59040138]
[1759106042448,1.98719789,4133.0,4132.9,0.81750138]
[1759106043949,1.43979789,4133.0,4132.9,0.81750138]
[1759106044544,0.52567789,4133.0,4132.9,1.82863924]
[1759106044843,1.21307789,4133.0,4132.9,0.81750138]
[1759106045147,0.77167789,4133.0,4132.9,1.82863924]
[1759106045845,1.00447789,4133.0,4132.9,1.82863924]
[1759106046151,1.65357789,4133.0,4132.9,0.02680138]
[1759106049345,1.21561,4132.1,4132.0,0.2262]
[1759106049546,1.21566,4131.6,4131.5,3.7985]
[1759106049752,1.98548657,4131.6,4131.5,3.7985]
[1759106049951,1.98548657,4131.6,4131.5,4.1359]
[1759106050454,1.64668657,4131.6,4131.5,4.13760767]
[1759106051855,1.96158657,4131.6,4131.5,3.20950767]
[1759106052154,1.9656594,4131.6,4131.5,3.20950767]
[1759106052751,5.1734594,4131.6,4131.5,0.00170767]
[1759106054154,5.1734594,4131.6,4130.6,3.2078]
[1759106054155,0.1132,4131.5,4130.6,3.2078]
[1759106054358,1.19086,4130.7,4130.6,0.5301]
[1759106054559,1.43686,4130.7,4130.6,0.5301]
[1759106055057,1.43686,4130.7,4130.6,1.6197066]
[1759106055259,0.246,4130.7,4130.6,1.62264913]
[1759106055457,3.2078,4131.1,4130.6,1.30324913]
[1759106055653,4.08372,4131.1,4131.0,1.7475066]
[1759106055854,5.17097595,4131.1,4131.0,1.7475066]
[1759106056351,5.17097595,4131.1,4131.0,0.7453]
[1759106057158,5.17097595,4131.1,4131.0,0.5301]
[1759106057958,5.17097595,4131.1,4131.0,0.8731]
[1759106059152,5.17097595,4131.1,4131.0,0.3194]
[1759106059354,5.17097595,4131.1,4130.6,0.00294253]
[1759106059355,1.19086,4130.7,4130.6,0.00294253]
[1759106059559,1.96321595,4130.7,4130.6,0.00294253]
[1759106060356,0.65656,4129.7,4129.6,0.7453]
[1759106060659,1.12206,4129.7,4129.6,0.7453]
[1759106061254,0.46974774,4129.7,4129.6,0.74711126]
[1759106061457,0.24884774,4129.7,4129.6,0.74711126]
[1759106063261,0.24884774,4129.7,4129.6,5.74711126]
[1759106068465,0.24884774,4129.7,4129.6,6.62151786]
[1759106070162,0.00284774,4129.7,4129.6,6.62151786]
[1759106072761,0.246,4130.2,4130.1,0.3167]
[1759106072968,0.68161,4130.2,4130.1,1.6315066]
[1759106073766,0.68463401,4130.2,4130.1,1.6315066]
[1759106074159,0.24902401,4130.2,4130.1,1.6315066]
[1759106074662,0.00302401,4130.2,4130.1,1.6315066]
[1759106077865,0.00302401,4130.2,4130.1,0.7571]
[1759106081672,0.53541482,4130.2,4130.1,0.7571]
[1759106082766,0.53541482,4130.2,4130.1,1.6315066]
[1759106083163,0.96621482,4130.2,4130.1,1.6315066]
[1759106083764,0.74461482,4130.2,4130.1,1.6315066]
[1759106085077,1.18022482,4130.2,4130.1,1.6315066]
[1759106085373,1.18022482,4130.2,4130.1,2.0671266]
[1759106085769,1.18022482,4130.2,4130.1,1.6315066]
[1759106085975,0.97102482,4130.2,4130.1,1.6315066]
[1759106087464,0.97102482,4130.2,4130.1,2.0671266]
[1759106087777,1.18022482,4130.2,4130.1,1.6315066]
[1759106088574,0.74461482,4130.2,4130.1,1.6315066]
[1759106088777,0.53541482,4130.2,4130.1,1.6315066]
[1759106089979,0.53541482,4130.2,4130.1,1.19272]
[1759106089980,0.97102482,4130.2,4130.1,1.19272]
[1759106090880,0.53541482,4130.2,4130.1,1.19272]
[1759106093500,0.53541482,4130.2,4130.1,4.40052]
[1759106097292,0.53541482,4130.2,4130.1,4.64652]
[1759106102195,0.53541482,4130.2,4130.1,5.5209266]
[1759106102597,0.53541482,4130.2,4130.1,4.64652]
[1759106103100,0.53541482,4130.2,4130.1,4.40052]
[1759106103295,0.53541482,4130.2,4130.1,4.64652]
[1759106103503,0.53541482,4130.2,4130.1,5.2749266]
[1759106103800,0.53541482,4130.2,4130.1,5.5209266]
[1759106104403,0.53541482,4130.2,4130.1,4.64652]
[1759106105503,0.00302401,4130.2,4130.1,4.64652]
[1759106106291,0.20762401,4130.2,4130.1,4.64652]
[1759106106991,0.00302401,4130.2,4130.1,4.64652]
[1759106108199,0.00302401,4130.2,4130.1,5.65927823]
[1759106109899,0.53263888,4130.2,4130.1,5.65927823]
[1759106111696,0.53263888,4130.2,4130.1,5.41327823]
[1759106111902,0.53263888,4130.2,4130.1,5.22365823]
[1759106114303,1.28913888,4130.2,4130.1,3.9649]
[1759106114603,1.28913888,4130.2,4130.1,0.7571]
[1759106115702,1.28913888,4130.2,4130.0,0.1255]
[1759106115703,0.2207,4129.9,4129.8,0.3151]
[1759106115897,1.28611487,4129.9,4129.8,0.3151]
[1759106116098,0.75031487,4129.9,4129.8,0.7462]
[1759106116299,0.52961487,4129.9,4129.8,0.7462]
[1759106116995,0.96011487,4129.9,4129.8,0.7462]
[1759106117301,1.28611487,4129.9,4129.8,0.3151]
[1759106117698,1.28611487,4129.9,4129.8,0.5329]
[1759106117898,1.28611487,4129.9,4129.8,0.3151]
[1759106118299,0.7565,4129.7,4129.6,3.42741126]
[1759106118500,1.28611487,4129.7,4129.6,3.42741126]
[1759106118703,0.96011487,4129.7,4129.6,4.65346949]
[1759106118999,0.43564,4129.9,4129.7,0.3151]
[1759106119207,0.43564,4129.9,4129.8,0.7462]
[1759106119602,0.65934401,4130.2,4130.1,0.4311]
[1759106119907,1.18836069,4130.2,4130.1,1.75895823]
[1759106120106,1.39816069,4130.2,4130.1,1.75895823]
[1759106120307,1.72416069,4130.2,4130.1,1.75895823]
[1759106120602,1.28854069,4130.2,4130.1,1.75895823]
[1759106120807,0.96254069,4130.2,4130.1,1.75895823]
[1759106121704,1.28854069,4130.2,4130.1,1.75895823]
[1759106122810,0.96254069,4130.2,4130.1,1.75895823]
[1759106124009,1.28044069,4130.2,4130.1,0.5329]
[1759106124409,1.28044069,4130.2,4130.1,0.7549]
[1759106124810,1.28044069,4130.2,4130.1,1.76765823]
[1759106125112,0.95494069,4130.2,4130.1,1.76765823]
[1759106126018,0.73714069,4130.2,4130.1,1.76765823]
[1759106127311,0.53204069,4130.2,4130.1,1.76765823]
[1759106129812,0.00302401,4130.2,4130.1,4.97545823]
[1759106138823,0.43556,4130.8,4130.7,0.7553]
[1759106139019,0.64066,4130.8,4130.7,1.76805823]
[1759106139322,1.17020426,4130.8,4130.7,1.76805823]
[1759106139716,1.17319935,4130.8,4130.7,1.76805823]
[1759106142414,1.17318869,4130.8,4130.7,1.76805823]
[1759106145722,1.17318869,4130.8,4130.7,2.20361823]
[1759106145926,0.96808869,4130.8,4130.7,2.20361823]
[1759106146224,0.96808869,4130.8,4130.7,1.76805823]
[1759106147522,1.17318869,4130.8,4130.7,1.76805823]
[1759106154225,1.70608869,4130.8,4130.7,0.7553]
[1759106154424,1.70608869,4130.8,4130.7,0.5333]
[1759106155628,1.70608869,4130.8,4130.7,0.7396]
[1759106155927,1.95208869,4130.8,4130.7,0.7396]
[1759106156833,1.95208869,4130.8,4130.7,0.3129]
[1759106157028,1.95208869,4130.8,4130.7,0.521]
[1759106159530,1.95208869,4130.8,4130.7,0.7273]
[1759106163534,1.95309271,4130.8,4130.7,0.7273]
[1759106165140,1.70709271,4130.8,4130.7,0.7273]
[1759106165332,0.43561,4130.2,4130.1,3.6222]
[1759106165635,1.71934762,4130.2,4130.1,4.22055823]
[1759106165830,1.71934762,4130.2,4130.1,3.2078]
[1759106166028,1.71934762,4130.2,4130.1,3.5416]
[1759106166424,1.71934762,4130.2,4130.1,3.7497]
[1759106168331,1.71934762,4130.2,4130.1,4.62510888]
[1759106169643,1.96534762,4130.2,4130.1,1.20920888]
[1759106169840,1.96534762,4130.2,4130.1,0.87540888]
[1759106170237,1.18884,4129.9,4129.8,0.87540888]
[1759106170445,0.87376,4129.7,4129.6,3.20961126]
[1759106170645,1.71939762,4129.7,4129.6,3.54341126]
[1759106171033,1.71939762,4129.7,4129.6,3.20961126]
[1759106171640,1.96539762,4129.7,4129.6,3.54341126]
[1759106171835,1.96539762,4129.7,4129.6,3.20961126]
[1759106173350,1.96539762,4129.7,4129.6,2.68722126]
[1759106174342,1.96539762,4129.7,4129.6,2.69034264]
[1759106175139,0.64359,4129.5,4129.4,0.3338]
[1759106175343,1.17223,4129.1,4129.0,4.1071]
[1759106175550,1.38440152,4129.1,4129.0,4.98250888]
[1759106176038,0.43567,4129.6,4129.5,0.134]
[1759106176339,0.96427661,4129.6,4129.5,1.78466202]
[1759106176535,1.17217661,4129.6,4129.5,1.78466202]
[1759106177847,0.96427661,4129.6,4129.5,1.78466202]
[1759106179241,0.43567,4129.6,4129.5,1.78466202]
[1759106179836,3.85132,4130.1,4130.0,0.9063]
[1759106180045,4.83769996,4130.1,4130.0,1.78170888]
[1759106180242,0.43567,4129.6,4129.5,3.34475314]
[1759106180442,1.17217,4129.6,4129.5,1.78466202]
[1759106180737,0.2079,4129.6,4129.5,1.78466202]
[1759106182938,0.43567,4129.7,4129.5,1.45086202]
[1759106183237,0.43567,4129.7,4129.6,0.7723]
[1759106184841,1.18277,4129.7,4129.6,0.7723]
[1759106185042,1.71106585,4129.7,4129.6,1.64770888]
[1759106185243,1.38766585,4129.7,4129.6,1.64770888]
[1759106185947,0.7471,4128.2,4127.2,2.99336091]
[1759106186247,0.4519,4128.0,4127.9,0.45882569]
[1759106186437,0.246,4128.2,4127.9,1.33423457]
[1759106186636,1.1337,4128.5,4127.9,1.33423457]
[1759106186837,1.1337,4128.5,4128.4,1.31000888]
[1759106187044,1.3397,4128.5,4128.4,1.31000888]
[1759106187247,1.5574,4128.5,4128.4,1.31000888]
[1759106188450,1.5574,4128.5,4127.9,0.02654264]
[1759106188451,1.31144,4128.0,4127.9,0.02654264]
[1759106188636,5.05282388,4128.0,4127.9,0.24169227]
[1759106188836,4.86598388,4128.0,4127.9,0.45839227]
[1759106189044,4.3324,4128.0,4127.9,0.45839227]
[1759106189544,4.0834,4128.0,4127.9,0.61759227]
[1759106189845,0.6579,4128.0,4127.9,0.61759227]
[1759106190143,0.6579,4128.0,4127.9,0.45839227]
[1759106190337,1.1246,4128.0,4127.9,0.45839227]
[1759106192742,0.4237,4126.2,4126.1,0.4346]
[1759106192947,0.7471,4126.3,4126.2,0.7421]
[1759106193150,3.3363,4127.0,4126.2,0.7421]
[1759106193341,1.43609,4126.6,4126.5,1.61750888]
[1759106193747,1.18522008,4126.6,4126.5,0.00186757]
[1759106195142,0.206,4124.6,4124.5,0.2179]
[1759106195342,0.5294,4125.2,4125.1,0.4346]
[1759106195548,0.099,4125.2,4125.1,0.4346]
[1759106195748,0.099,4125.2,4125.1,0.7421]
[1759106196047,0.099,4125.2,4125.1,0.74413761]
[1759106196441,3.3363,4126.0,4125.1,0.43663761]
[1759106196754,0.5294,4125.5,4125.4,1.61750888]
[1759106197052,0.5294,4125.5,4125.4,0.4346]
[1759106197053,1.31171,4125.5,4125.4,0.4346]
[1759106197253,1.31171,4125.5,4125.4,0.2179]
[1759106197851,1.18323,4125.3,4125.1,0.00203761]
[1759106199252,1.62250888,4125.2,4125.1,0.00203761]
[1759106199757,1.0001,4125.2,4125.1,0.00203761]
[1759106200252,1.0001,4125.2,4125.1,0.21993761]
[1759106200954,1.0001,4125.2,4124.8,0.3075]
[1759106200955,1.18332,4124.4,4124.3,0.2167]
[1759106201149,0.4237,4124.4,4124.3,3.9499]
[1759106201342,0.4362,4124.7,4124.6,0.4346]
[1759106201542,0.64217,4125.0,4124.9,0.2179]
[1759106201743,3.2078,4125.4,4125.0,0.1322]
[1759106201947,3.9912,4125.4,4125.3,1.61750888]
[1759106202152,3.9549,4125.4,4125.3,1.61750888]
[1759106202354,4.39102,4125.4,4125.3,1.61750888]
[1759106202662,4.39102,4125.4,4125.3,1.31000888]
[1759106203254,1.18322,4125.4,4125.3,1.61750888]
[1759106204752,3.2078,4125.9,4125.7,0.3075]
[1759106204952,0.1285,4126.5,4125.6,0.4346]
[1759106204953,0.7471,4126.2,4126.1,0.7421]
[1759106205147,0.7471,4126.2,4126.1,1.61750888]
[1759106205448,3.2078,4126.4,4126.1,1.31000888]
[1759106205754,3.9902,4126.4,4126.3,0.7421]
[1759106205954,4.2079,4126.4,4126.3,0.7421]
[1759106206150,3.9549,4126.4,4126.3,0.4346]
[1759106206350,4.2079,4126.4,4126.3,0.2179]
[1759106206547,3.4608,4126.4,4125.6,0.3075]
[1759106206750,0.5294,4125.7,4125.6,0.5254]
[1759106206946,0.5294,4125.7,4125.6,0.7421]
[1759106207257,0.5294,4126.0,4125.9,0.7421]
[1759106207451,0.5294,4126.0,4125.9,1.61750888]
[1759106207650,0.5294,4126.0,4125.9,0.7421]
[1759106207852,0.5294,4125.1,4125.0,3.95201386]
[1759106208052,0.5294,4125.1,4125.0,4.82742274]
[1759106208450,0.7471,4125.1,4125.0,4.82742274]
[1759106208848,0.7471,4125.1,4125.0,4.51992274]
[1759106209150,0.7471,4125.1,4125.0,3.20991386]
[1759106209353,0.7471,4125.1,4125.0,0.00211386]
[1759106209554,0.7471,4125.1,4125.0,0.22001386]
[1759106209752,0.7471,4125.1,4125.0,0.00211386]
[1759106209956,1.62250888,4125.1,4125.0,0.00211386]
[1759106210750,0.7471,4125.1,4125.0,0.00211386]
[1759106210952,0.7471,4125.1,4125.0,0.74421386]
[1759106211151,0.7471,4125.1,4125.0,0.22001386]
[1759106211850,0.7471,4125.1,4125.0,0.43671386]
[1759106213651,0.7471,4125.1,4125.0,0.00211386]
[1759106214054,1.27837298,4125.1,4125.0,0.00211386]
[1759106214651,1.27837298,4125.1,4125.0,0.22001386]
[1759106214856,1.53237298,4125.1,4125.0,1.09542274]
[1759106215653,1.27837298,4125.1,4125.0,1.30952274]
[1759106215853,1.27837298,4125.1,4125.0,0.75681386]
[1759106216057,1.27837298,4125.1,4125.0,0.22001386]
[1759106216263,1.27837298,4125.1,4125.0,0.00211386]
[1759106217560,1.53237298,4125.1,4125.0,0.00211386]
[1759106219963,1.27837298,4125.1,4125.0,0.00211386]
[1759106220162,1.53237298,4125.1,4125.0,0.00211386]
[1759106220553,1.27837298,4125.1,4125.0,0.00211386]
[1759106220758,1.53237298,4125.1,4125.0,0.00211386]
[1759106221456,1.27837298,4125.1,4125.0,0.00211386]
[1759106221966,1.53137298,4125.1,4125.0,0.00211386]
[1759106222265,1.53137298,4125.1,4125.0,0.20751386]
[1759106226371,1.53137298,4125.1,4125.0,0.74431386]
[1759106227870,1.31367298,4125.1,4125.0,0.74431386]
[1759106228261,0.78427298,4125.1,4125.0,0.74431386]
[1759106228657,1.11637298,4125.1,4125.0,0.74431386]
[1759106228863,1.07137298,4125.1,4125.0,0.74431386]
[1759106229065,0.86337298,4125.1,4125.0,0.74431386]
[1759106229470,0.53127298,4125.1,4125.0,5.79271386]
[1759106229866,3.2078,4125.7,4125.6,0.7422]
[1759106230062,3.2078,4125.7,4125.6,1.61760888]
[1759106230264,3.2078,4125.7,4125.6,1.75715786]
[1759106230779,0.3321,4125.9,4125.8,0.7422]
[1759106230975,0.5401,4125.9,4125.8,0.7422]
[1759106231658,0.68904,4126.2,4125.9,0.43607]
[1759106231861,0.68904,4126.2,4125.6,4.22275786]
[1759106231862,0.5482,4126.2,4126.1,0.7559]
[1759106232866,0.3336,4126.2,4126.1,0.7559]
[1759106233966,0.3336,4126.4,4126.2,0.43603]
[1759106234164,0.3336,4126.4,4126.3,1.77085786]
[1759106234165,0.5482,4126.4,4126.3,1.77085786]
[1759106236670,0.3336,4126.4,4126.3,1.77085786]
[1759106236976,0.33573008,4126.6,4126.5,0.7559]
[1759106237371,0.00213008,4126.6,4126.5,0.7559]
[1759106237569,0.33573008,4126.6,4126.5,0.7559]
[1759106240573,0.2146,4126.1,4126.0,0.2113]
[1759106240770,0.7707,4126.1,4126.0,0.7559]
[1759106240968,0.1244,4126.5,4126.0,0.7559]
[1759106241170,0.25413008,4126.6,4126.3,0.7559]
[1759106241376,0.8951,4126.5,4126.4,1.19191]
[1759106241880,0.7707,4126.5,4126.4,1.19191]
[1759106242381,0.7707,4126.5,4126.4,2.20686786]
[1759106242977,0.5482,4126.5,4126.4,2.20686786]
[1759106243173,0.00213008,4126.6,4126.4,1.88286786]
[1759106243379,0.00213008,4126.6,4126.5,0.7559]
[1759106243679,0.77283008,4126.6,4126.5,0.7559]
[1759106245180,0.77283008,4126.6,4126.5,0.2113]
[1759106245481,0.77283008,4126.6,4126.5,0.76]
[1759106245686,0.33573008,4126.6,4126.5,0.76]
[1759106246884,0.3161,4127.0,4126.9,0.43596]
[1759106247183,0.1326,4127.5,4126.9,0.43596]
[1759106247184,0.5216,4127.4,4127.3,0.759]
[1759106247486,0.5216,4127.4,4127.3,1.77395786]
[1759106247687,0.7399,4127.4,4127.3,1.77395786]
[1759106248081,0.52423363,4127.4,4127.3,1.77395786]
[1759106248283,0.00263363,4127.4,4127.3,1.77395786]
[1759106249280,0.00263363,4127.4,4127.3,2.02595786]
[1759106249984,0.3161,4127.3,4126.7,3.5448]
[1759106250183,0.7399,4126.8,4126.7,3.4181]
[1759106251184,0.7399,4126.8,4126.7,3.6298]
[1759106251585,0.7399,4126.8,4126.7,3.9668]
[1759106251783,0.3161,4127.0,4126.9,1.19496]
[1759106251982,0.5216,4127.2,4127.1,0.422]
[1759106252185,0.5216,4127.2,4127.1,0.759]
[1759106253591,0.31873363,4127.4,4127.1,0.422]
[1759106253788,0.52423363,4127.4,4127.3,1.77395786]
[1759106253996,0.74253363,4127.4,4127.3,1.43695786]
[1759106254192,1.17844363,4127.4,4127.3,1.43695786]
[1759106254692,1.17844363,4127.4,4127.3,1.77395786]
[1759106255089,0.74253363,4127.4,4127.3,1.77395786]
[1759106255991,0.31873363,4127.4,4127.3,1.77395786]
[1759106256190,0.00263363,4127.4,4127.3,1.77395786]
[1759106256691,0.52423363,4127.4,4127.3,1.77395786]
[1759106257195,0.00263363,4127.4,4127.3,1.77395786]
[1759106258395,0.00263363,4127.4,4127.3,4.98175786]
[1759106258896,0.74253363,4127.4,4127.3,0.2103]
[1759106259097,0.7399,4127.1,4127.0,0.2103]
[1759106259291,0.7399,4127.1,4127.0,1.22525786]
[1759106259595,0.7399,4127.1,4127.0,1.01495786]
[1759106259903,0.8646,4126.5,4126.4,1.22525786]
[1759106260097,0.8646,4126.5,4126.4,1.43695786]
[1759106260401,0.5216,4126.9,4126.8,0.759]
[1759106260595,0.7399,4126.9,4126.8,0.759]
[1759106260798,1.17587,4126.8,4126.7,1.01495786]
[1759106261105,0.7399,4126.8,4126.7,1.22525786]
[1759106262092,0.7399,4126.8,4126.7,1.01495786]
[1759106262399,0.8646,4126.5,4126.4,1.22525786]
[1759106262706,1.3006,4126.5,4126.4,1.01495786]
[1759106263202,0.3161,4126.4,4126.3,3.2078]
[1759106263497,0.7399,4125.9,4125.8,4.98175786]
[1759106263698,0.5216,4125.9,4125.8,5.23275786]
[1759106264295,0.5216,4125.9,4125.8,4.2178]
[1759106264506,0.5216,4125.9,4125.8,1.01]
[1759106265206,0.7399,4125.9,4125.8,1.01]
[1759106265503,0.5216,4126.4,4126.3,0.759]
[1759106265805,0.43599,4126.7,4126.4,0.337]
[1759106266101,0.5216,4126.7,4126.6,0.759]
[1759106266302,0.7399,4126.7,4126.6,0.759]
[1759106267199,0.1247,4126.0,4125.7,3.2078]
[1759106267403,0.7399,4125.9,4125.8,0.673]
[1759106267904,0.43603,4126.3,4125.8,1.01]
[1759106268093,0.2055,4126.2,4126.1,0.2103]
[1759106268296,0.4238,4126.2,4126.1,0.422]
[1759106268500,0.4238,4125.9,4125.8,0.4613]
[1759106268700,0.7399,4125.9,4125.8,0.673]
[1759106268906,0.7399,4125.9,4125.8,1.01]
[1759106269102,0.3161,4126.2,4126.0,0.337]
[1759106269302,0.3161,4126.5,4126.4,0.422]
[1759106269507,0.64147,4126.8,4126.7,0.759]
[1759106269703,0.4238,4126.8,4126.7,0.759]
[1759106270099,0.7399,4126.8,4126.7,0.422]
[1759106270504,0.7399,4126.8,4126.7,0.759]
[1759106270705,0.7399,4126.8,4126.7,0.422]
[1759106271309,0.7399,4126.8,4126.7,0.759]
[1759106271503,0.7399,4126.8,4126.7,0.422]
[1759106272509,0.4408,4127.0,4126.7,0.422]
[1759106272709,0.5216,4126.9,4126.8,0.759]
[1759106274218,0.731,4126.9,4126.8,0.759]
[1759106276012,0.208,4126.9,4126.8,0.759]
[1759106276220,0.4174,4126.9,4126.8,0.759]
[1759106276411,0.7267,4126.9,4126.8,0.759]
[1759106278718,0.51993363,4127.4,4127.3,0.7645]
[1759106278909,0.515561,4127.4,4127.3,0.7645]
[1759106279110,0.00263363,4127.4,4127.3,0.7645]
[1759106280024,0.51993363,4127.4,4127.3,0.7645]
[1759106280917,0.00263363,4127.4,4127.3,1.0145]
[1759106286335,0.00263363,4127.4,4127.3,2.02844823]
[1759106292240,0.00263363,4127.4,4127.3,1.89072301]
[1759106296335,0.55153363,4127.4,4127.3,1.0145]
[1759106296642,0.98744363,4127.4,4127.3,1.0145]
[1759106297537,1.32765,4127.0,4126.9,0.7613]
[1759106297837,1.32765,4127.0,4126.9,1.55202301]
[1759106298332,1.32765,4127.0,4126.9,1.34212301]
[1759106298534,1.32765,4127.0,4126.9,1.12522301]
[1759106299443,1.32765,4127.0,4126.7,3.2078]
[1759106299444,0.43597,4126.8,4126.7,3.2078]
[1759106299743,1.19767,4126.8,4126.7,4.33302301]
[1759106300046,1.19767,4126.8,4126.7,1.12522301]
[1759106300946,1.19767,4126.8,4126.7,1.09312301]
[1759106304650,0.7617,4126.8,4126.7,1.62142301]
[1759106306744,0.5489,4126.8,4126.7,1.62142301]
[1759106306944,0.76795,4127.0,4126.9,0.4417]
[1759106307244,0.76795,4127.0,4126.9,0.7601]
[1759106307951,0.97205,4127.0,4126.9,0.7601]
[1759106309549,0.5361,4127.0,4126.9,0.7601]
[1759106310154,0.42263363,4127.4,4127.3,0.7601]
[1759106310453,0.42263363,4127.4,4127.3,1.63632301]
[1759106310650,0.75463363,4127.4,4127.3,1.63632301]
[1759106311358,0.332,4127.8,4127.7,0.4417]
[1759106311561,0.332,4127.8,4127.7,1.63632301]
[1759106311857,0.332,4127.8,4127.7,4.84412301]
[1759106311858,0.5361,4127.8,4127.7,4.84412301]
[1759106312456,0.53919832,4127.8,4127.7,3.9679]
[1759106312657,0.53919832,4127.8,4127.7,4.84412301]
[1759106314053,0.00309832,4127.8,4127.7,4.84412301]
[1759106314264,0.1247,4128.5,4128.1,0.7601]
[1759106314455,0.5361,4128.4,4128.3,0.4417]
[1759106314650,0.3722,4129.0,4128.3,1.19591]
[1759106314856,0.5361,4128.9,4128.8,0.7601]
[1759106315150,0.332,4129.0,4128.9,0.7601]
[1759106315455,0.5379468,4129.0,4128.9,0.7601]
[1759106315657,0.5379468,4129.0,4128.9,1.63632301]
[1759106315855,0.0018468,4129.0,4128.9,1.63632301]
[1759106316252,0.3338468,4129.0,4128.9,1.63632301]
[1759106316454,0.3338468,4129.0,4128.9,1.88532301]
[1759106317256,0.3338468,4129.0,4128.9,1.63632301]
[1759106317257,0.5379468,4129.0,4128.9,1.63632301]
[1759106317554,0.0018468,4129.0,4128.9,1.88532301]
[1759106319357,0.332,4129.3,4129.2,0.4417]
[1759106319552,0.332,4129.3,4129.2,5.09312301]
[1759106320055,0.43567,4129.7,4129.4,0.4417]
[1759106320255,1.18765,4129.9,4129.8,0.7601]
[1759106320454,1.18996035,4129.9,4129.8,0.7601]
[1759106320650,1.18996035,4129.9,4129.8,0.4417]
[1759106322663,0.752,4129.3,4129.2,4.08402301]
[1759106323454,5.752,4129.3,4129.2,4.08402301]
[1759106324668,6.001,4129.3,4129.2,0.87622301]
[1759106326464,1.18775,4128.9,4128.8,0.00261481]
[1759106326672,1.43575,4128.9,4128.8,0.00261481]
[1759106327467,1.43575,4128.9,4127.7,0.3184]
[1759106327468,1.18781,4128.3,4128.2,3.2078]
[1759106327672,1.18781,4128.3,4128.2,3.4265]
[1759106328363,1.18781,4128.3,4128.2,3.42882418]
[1759106328563,1.18781,4128.3,4128.2,4.30504719]
[1759106329373,1.18781,4128.3,4128.2,4.08634719]
[1759106329573,1.18781,4128.3,4128.2,0.87854719]
[1759106330167,0.43586,4127.8,4127.7,3.2078]
[1759106330374,1.18786,4127.8,4127.7,4.08402301]
[1759106330867,1.18786,4127.8,4127.7,4.30272301]
[1759106331272,1.18786,4127.8,4127.7,4.30461012]
[1759106332271,1.18786,4127.8,4127.7,4.52761012]
[1759106332874,0.43586,4127.8,4127.7,4.84601012]
[1759106333174,1.18782,4128.2,4128.1,0.4417]
[1759106333380,1.18782,4128.2,4128.1,1.31792301]
[1759106334080,1.18782,4128.2,4128.1,1.09492301]
[1759106335578,1.18782,4128.2,4128.1,1.30472301]
[1759106336475,1.18782,4128.2,4128.1,1.62122301]
[1759106337775,0.43582,4128.2,4128.1,1.62122301]
[1759106339480,0.43582,4128.2,4128.1,1.86922301]
[1759106339675,4.29714,4129.1,4128.9,0.4173]
[1759106339676,0.77244,4129.0,4128.9,0.4173]
[1759106339877,0.5212,4129.0,4128.9,1.61002301]
[1759106340084,3.729,4129.1,4129.0,0.7338]
[1759106341579,0.3077,4129.1,4129.0,0.7338]
[1759106342275,0.3077,4129.4,4129.0,0.467]
[1759106342481,0.3077,4129.4,4129.3,0.7338]
[1759106342884,0.74337,4129.7,4129.4,0.3165]
[1759106343084,0.95916035,4129.9,4129.8,0.7338]
[1759106343386,0.52351035,4129.9,4129.8,0.7338]
[1759106343883,0.00231035,4129.9,4129.8,1.61002301]
[1759106344086,0.3077,4130.3,4130.2,0.7338]
[1759106344287,0.3077,4130.3,4130.2,1.61002301]
[1759106344288,0.7285,4130.3,4130.2,1.61002301]
[1759106344484,0.7285,4130.3,4130.2,1.29352301]
[1759106344991,0.73117,4130.3,4130.2,1.29352301]
[1759106348684,0.52387,4130.3,4130.2,1.61002301]
[1759106348890,0.00267,4130.3,4130.2,1.61002301]
[1759106351087,0.00267,4130.3,4130.2,1.85802301]
[1759106352183,0.00267,4130.3,4130.2,1.99432093]
[1759106353897,0.32477,4130.3,4130.2,1.99432093]
[1759106354393,0.00267,4130.3,4130.2,1.99432093]
[1759106361198,0.75277,4130.3,4130.2,1.42982093]
[1759106361502,0.75277,4130.3,4130.2,1.22002093]
[1759106361699,0.75277,4130.3,4130.2,1.43072093]
[1759106362096,0.75277,4130.3,4130.2,1.22002093]
[1759106363402,0.75277,4130.3,4130.2,1.43072093]
[1759106363592,0.00267,4130.3,4130.2,1.75402093]
[1759106364199,0.33717,4130.3,4130.2,1.75402093]
[1759106364597,0.00267,4130.3,4130.2,2.00202093]
[1759106365899,0.78017,4130.3,4130.2,0.7414]
[1759106366100,0.78017,4130.3,4130.2,1.43972093]
[1759106366998,0.78017,4130.3,4130.2,1.75392093]
[1759106369106,0.78017,4130.3,4130.2,1.43972093]
[1759106370608,0.78017,4130.3,4130.2,1.75392093]